[Event "*** Titled Tuesday 3|2 Blitz"]
[Site "Chess.com"]
[Date "2016.05.03"]
[Round "2"]
[White "StellarChessPro"]
[Black "ArnaudovP"]
[Result "1-0"]
[WhiteElo "2275"]
[BlackElo "2397"]
[TimeControl "180+2"]
[EndTime "17:16:18 PDT"]
[Termination "StellarChessPro won by resignation"]

1. d4 {[%clk 0:03:01.9]} 1... Nf6 {[%clk 0:03:00.3]} 2. Bg5 {[%clk 0:03:02.5]}
2... Ne4 {[%clk 0:03:00.1]} 3. Bf4 {[%clk 0:03:03.6]} 3... e5 {[%clk 0:03:01.6]}
4. dxe5 {[%clk 0:03:04.1]} 4... d5 {[%clk 0:03:02.2]} 5. f3 {[%clk 0:03:05.2]}
5... Nc5 {[%clk 0:03:01.4]} 6. e3 {[%clk 0:03:03.5]} 6... Nc6 {[%clk 0:03:00.5]}
7. Nc3 {[%clk 0:03:04.3]} 7... g5 {[%clk 0:02:57]} 8. Bg3 {[%clk 0:03:04.9]}
8... Be6 {[%clk 0:02:57.1]} 9. Nge2 {[%clk 0:03:05.5]} 9... Bg7 {[%clk
0:02:57.3]} 10. Nd4 {[%clk 0:03:06.6]} 10... Nxe5 {[%clk 0:02:53.8]} 11. Nxe6
{[%clk 0:03:06.5]} 11... fxe6 {[%clk 0:02:53.7]} 12. Qd2 {[%clk 0:03:03.2]}
12... Qe7 {[%clk 0:02:46.6]} 13. O-O-O {[%clk 0:03:01.6]} 13... O-O-O {[%clk
0:02:42.4]} 14. Kb1 {[%clk 0:03:01]} 14... a6 {[%clk 0:02:34.2]} 15. Be2 {[%clk
0:02:58.7]} 15... Nc6 {[%clk 0:02:32]} 16. Bd3 {[%clk 0:02:53.2]} 16... e5
{[%clk 0:02:31.1]} 17. Bf5+ {[%clk 0:02:53.3]} 17... Kb8 {[%clk 0:02:30.5]} 18.
Nxd5 {[%clk 0:02:53.5]} 18... Qf7 {[%clk 0:02:30.4]} 19. e4 {[%clk 0:02:53.5]}
19... Nd4 {[%clk 0:02:31.2]} 20. Ne3 {[%clk 0:02:50.6]} 20... Nxf5 {[%clk
0:02:27.3]} 21. Qxd8+ {[%clk 0:02:51]} 21... Rxd8 {[%clk 0:02:26.7]} 22. Rxd8+
{[%clk 0:02:52.9]} 22... Ka7 {[%clk 0:02:27.8]} 23. Nxf5 {[%clk 0:02:54]} 23...
Bf6 {[%clk 0:02:27.3]} 24. Rd2 {[%clk 0:02:49.1]} 24... Qc4 {[%clk 0:02:25.4]}
25. Bf2 {[%clk 0:02:49.7]} 25... b6 {[%clk 0:02:24]} 26. Bxc5 {[%clk 0:02:50.2]}
26... Qxc5 {[%clk 0:02:25]} 27. Rhd1 {[%clk 0:02:52.1]} 27... Kb7 {[%clk
0:02:25.4]} 28. a3 {[%clk 0:02:51.8]} 28... h5 {[%clk 0:02:23.8]} 29. Rd3 {[%clk
0:02:51]} 29... g4 {[%clk 0:02:24.2]} 30. Rc3 {[%clk 0:02:51.1]} 30... Qb5
{[%clk 0:02:22.3]} 31. fxg4 {[%clk 0:02:36.8]} 31... hxg4 {[%clk 0:02:22]} 32.
h4 {[%clk 0:02:38.4]} 32... a5 {[%clk 0:02:13.6]} 33. h5 {[%clk 0:02:39.2]}
33... Qe2 {[%clk 0:02:12.9]} 34. Rd7 {[%clk 0:02:35.8]} 34... Qxe4 {[%clk
0:02:12.4]} 35. Nd6+ {[%clk 0:02:36]} 1-0

[Event "*** Titled Tuesday 3|2 Blitz"]
[Site "Chess.com"]
[Date "2016.05.03"]
[Round "2"]
[White "dsanchez1973"]
[Black "renanreis"]
[Result "1-0"]
[WhiteElo "2019"]
[BlackElo "2001"]
[TimeControl "180+2"]
[EndTime "17:17:15 PDT"]
[Termination "dsanchez1973 won by resignation"]

1. e4 {[%clk 0:03:01.9]} 1... e5 {[%clk 0:02:59.4]} 2. Nf3 {[%clk 0:03:02.7]}
2... Nc6 {[%clk 0:03:00.3]} 3. Bb5 {[%clk 0:03:01.9]} 3... a6 {[%clk 0:02:59.9]}
4. Ba4 {[%clk 0:03:03.5]} 4... Nf6 {[%clk 0:02:59]} 5. O-O {[%clk 0:03:04.9]}
5... Be7 {[%clk 0:02:58]} 6. c3 {[%clk 0:03:03.6]} 6... Nxe4 {[%clk 0:02:55]} 7.
Re1 {[%clk 0:03:04.8]} 7... Nc5 {[%clk 0:02:54.4]} 8. Bc2 {[%clk 0:03:03.8]}
8... d6 {[%clk 0:02:52.4]} 9. d4 {[%clk 0:03:04.9]} 9... Nd7 {[%clk 0:02:47.9]}
10. d5 {[%clk 0:03:03.2]} 10... Ncb8 {[%clk 0:02:47.3]} 11. Nbd2 {[%clk
0:03:04.4]} 11... O-O {[%clk 0:02:45.7]} 12. Nf1 {[%clk 0:02:59.1]} 12... c6
{[%clk 0:02:42.6]} 13. Ng3 {[%clk 0:02:56.7]} 13... cxd5 {[%clk 0:02:40.5]} 14.
Qxd5 {[%clk 0:02:53.8]} 14... Nf6 {[%clk 0:02:41.7]} 15. Qd3 {[%clk 0:02:53.1]}
15... Nc6 {[%clk 0:02:42.8]} 16. Nh5 {[%clk 0:02:51.9]} 16... g6 {[%clk
0:02:41]} 17. Nxf6+ {[%clk 0:02:43.6]} 17... Bxf6 {[%clk 0:02:42.9]} 18. Bh6
{[%clk 0:02:43.6]} 18... Bg7 {[%clk 0:02:36.4]} 19. Bxg7 {[%clk 0:02:42.9]}
19... Kxg7 {[%clk 0:02:38.3]} 20. Rad1 {[%clk 0:02:43.8]} 20... Bf5 {[%clk
0:02:38.7]} 21. Qd2 {[%clk 0:02:41.7]} 21... Bxc2 {[%clk 0:02:37]} 22. Qxc2
{[%clk 0:02:42.5]} 22... Qe7 {[%clk 0:02:36.1]} 23. h3 {[%clk 0:02:39.3]} 23...
Rac8 {[%clk 0:02:34.2]} 24. Nh2 {[%clk 0:02:40.1]} 24... Rfd8 {[%clk 0:02:28.9]}
25. f4 {[%clk 0:02:36.5]} 25... Qf6 {[%clk 0:02:25.1]} 26. Rf1 {[%clk
0:02:31.5]} 26... Nd4 {[%clk 0:02:21.1]} 27. Qe4 {[%clk 0:02:28.6]} 27... Nf5
{[%clk 0:02:00.1]} 28. Ng4 {[%clk 0:02:28.9]} 28... Qe6 {[%clk 0:01:49.2]} 29.
fxe5 {[%clk 0:02:29.7]} 29... Ng3 {[%clk 0:01:47.6]} 30. Qf4 {[%clk 0:02:09.2]}
30... Nxf1 {[%clk 0:01:45.9]} 31. Qh6+ {[%clk 0:02:10.2]} 31... Kh8 {[%clk
0:01:40.9]} 32. Nf6 {[%clk 0:02:11.3]} 32... Qxf6 {[%clk 0:01:38.5]} 33. exf6
{[%clk 0:02:12.3]} 33... Rg8 {[%clk 0:01:36.4]} 34. Kxf1 {[%clk 0:02:12.9]}
34... Rcd8 {[%clk 0:01:35.8]} 35. Rd4 {[%clk 0:02:12.8]} 1-0

[Event "*** Titled Tuesday 3|2 Blitz"]
[Site "Chess.com"]
[Date "2016.05.03"]
[Round "2"]
[White "chito89"]
[Black "GMG"]
[Result "0-1"]
[WhiteElo "2626"]
[BlackElo "2440"]
[TimeControl "180+2"]
[EndTime "17:17:53 PDT"]
[Termination "GMG won by resignation"]

1. e4 {[%clk 0:03:01.9]} 1... d5 {[%clk 0:03:00.5]} 2. exd5 {[%clk 0:03:02.5]}
2... Qxd5 {[%clk 0:02:59.9]} 3. Nc3 {[%clk 0:03:03.8]} 3... Qa5 {[%clk
0:03:00.1]} 4. g3 {[%clk 0:03:05]} 4... Nf6 {[%clk 0:02:59.3]} 5. Bg2 {[%clk
0:03:06]} 5... c6 {[%clk 0:02:56.5]} 6. Nge2 {[%clk 0:03:04.8]} 6... g6 {[%clk
0:02:52.3]} 7. Rb1 {[%clk 0:03:05.5]} 7... Bg7 {[%clk 0:02:51.8]} 8. b4 {[%clk
0:03:06.6]} 8... Qc7 {[%clk 0:02:53.1]} 9. d3 {[%clk 0:03:07]} 9... O-O {[%clk
0:02:54]} 10. O-O {[%clk 0:03:08.3]} 10... Nbd7 {[%clk 0:02:45.9]} 11. a4 {[%clk
0:03:07.6]} 11... b6 {[%clk 0:02:41.7]} 12. Bf4 {[%clk 0:03:03]} 12... e5 {[%clk
0:02:40.6]} 13. Be3 {[%clk 0:03:01.7]} 13... Bb7 {[%clk 0:02:40.7]} 14. h3
{[%clk 0:03:02.7]} 14... Nd5 {[%clk 0:02:41.3]} 15. Nxd5 {[%clk 0:03:00.6]}
15... cxd5 {[%clk 0:02:43.2]} 16. c4 {[%clk 0:02:55.7]} 16... d4 {[%clk
0:02:35.2]} 17. Bxb7 {[%clk 0:02:52.1]} 17... Qxb7 {[%clk 0:02:37.1]} 18. Bd2
{[%clk 0:02:52.1]} 18... f5 {[%clk 0:02:36]} 19. c5 {[%clk 0:02:39.7]} 19...
bxc5 {[%clk 0:02:36.3]} 20. bxc5 {[%clk 0:02:39]} 20... Qc6 {[%clk 0:02:36.1]}
21. Qb3+ {[%clk 0:02:39.3]} 21... Kh8 {[%clk 0:02:35.1]} 22. Rfc1 {[%clk
0:02:39.1]} 22... Nf6 {[%clk 0:02:20.1]} 23. Bg5 {[%clk 0:02:33.2]} 23... Nh5
{[%clk 0:02:14.2]} 24. Qb7 {[%clk 0:02:31.7]} 24... Qe6 {[%clk 0:02:06.7]} 25.
c6 {[%clk 0:02:24.7]} 25... f4 {[%clk 0:02:01.5]} 26. Qd7 {[%clk 0:02:18.7]}
26... Qa2 {[%clk 0:01:56.8]} 27. Qg4 {[%clk 0:02:08.4]} 27... f3 {[%clk
0:01:50.6]} 28. c7 {[%clk 0:02:08.1]} 28... fxe2 {[%clk 0:01:50.8]} 29. c8=Q
{[%clk 0:01:39.7]} 29... e1=Q+ {[%clk 0:01:35.7]} 30. Rxe1 {[%clk 0:01:39.9]}
30... Raxc8 {[%clk 0:01:36.3]} 31. Rf1 {[%clk 0:01:30.4]} 31... Rc2 {[%clk
0:01:28.7]} 32. Be7 {[%clk 0:01:21.2]} 32... Rcxf2 {[%clk 0:01:25.8]} 0-1

[Event "*** Titled Tuesday 3|2 Blitz"]
[Site "Chess.com"]
[Date "2016.05.03"]
[Round "2"]
[White "Elshan1985"]
[Black "destroyer305"]
[Result "1-0"]
[WhiteElo "2568"]
[BlackElo "2253"]
[TimeControl "180+2"]
[EndTime "17:18:02 PDT"]
[Termination "Elshan1985 won by resignation"]

1. e4 {[%clk 0:03:01.9]} 1... c5 {[%clk 0:03:00.8]} 2. Nf3 {[%clk 0:03:02.9]}
2... d6 {[%clk 0:03:02.4]} 3. Bb5+ {[%clk 0:03:04.1]} 3... Bd7 {[%clk
0:02:59.7]} 4. c4 {[%clk 0:03:05.2]} 4... Nf6 {[%clk 0:02:59]} 5. Nc3 {[%clk
0:03:06.1]} 5... g6 {[%clk 0:03:00.4]} 6. O-O {[%clk 0:03:06.1]} 6... Bg7 {[%clk
0:03:01.7]} 7. d4 {[%clk 0:03:07.6]} 7... cxd4 {[%clk 0:03:01.4]} 8. Nxd4 {[%clk
0:03:07.8]} 8... Nc6 {[%clk 0:03:01.6]} 9. Bxc6 {[%clk 0:03:08.1]} 9... bxc6
{[%clk 0:03:01.2]} 10. h3 {[%clk 0:03:07.2]} 10... O-O {[%clk 0:03:02.1]} 11.
Be3 {[%clk 0:03:04.1]} 11... c5 {[%clk 0:02:53.4]} 12. Nf3 {[%clk 0:03:01.1]}
12... Be6 {[%clk 0:02:54.6]} 13. b3 {[%clk 0:02:58.6]} 13... Nd7 {[%clk
0:02:32.2]} 14. Qd2 {[%clk 0:02:57.7]} 14... Ne5 {[%clk 0:02:32.4]} 15. Nxe5
{[%clk 0:02:55]} 15... Bxe5 {[%clk 0:02:34.3]} 16. f4 {[%clk 0:02:53.6]} 16...
Bg7 {[%clk 0:02:34.1]} 17. f5 {[%clk 0:02:54.7]} 17... Bd7 {[%clk 0:02:28.1]}
18. Bh6 {[%clk 0:02:55]} 18... Bc6 {[%clk 0:02:08.8]} 19. Rae1 {[%clk
0:02:52.8]} 19... a5 {[%clk 0:02:02.3]} 20. Nd5 {[%clk 0:02:50.8]} 20... Bxd5
{[%clk 0:02:02.6]} 21. exd5 {[%clk 0:02:51.9]} 21... a4 {[%clk 0:02:02]} 22.
Bxg7 {[%clk 0:02:52.5]} 22... Kxg7 {[%clk 0:02:03.2]} 23. b4 {[%clk 0:02:37.6]}
23... cxb4 {[%clk 0:01:55.4]} 24. Qxb4 {[%clk 0:02:38.6]} 24... Qd7 {[%clk
0:01:52.4]} 25. Rxe7 {[%clk 0:02:31.7]} 25... Qxe7 {[%clk 0:00:45.7]} 26. f6+
{[%clk 0:02:31.1]} 26... Qxf6 {[%clk 0:00:47.6]} 27. Rxf6 {[%clk 0:02:32.4]}
27... Kxf6 {[%clk 0:00:49.5]} 28. Qxd6+ {[%clk 0:02:31.9]} 28... Kg7 {[%clk
0:00:51.4]} 29. Qe5+ {[%clk 0:02:33.1]} 29... f6 {[%clk 0:00:52.3]} 30. Qd4
{[%clk 0:02:33.7]} 30... a3 {[%clk 0:00:37.6]} 31. c5 {[%clk 0:02:34.3]} 31...
Rfb8 {[%clk 0:00:35.1]} 32. d6 {[%clk 0:02:34.1]} 32... Rb2 {[%clk 0:00:35.9]}
33. d7 {[%clk 0:02:34.8]} 33... Rd8 {[%clk 0:00:15.2]} 34. c6 {[%clk 0:02:35.6]}
34... Rxa2 {[%clk 0:00:14.1]} 35. c7 {[%clk 0:02:34.6]} 1-0

[Event "*** Titled Tuesday 3|2 Blitz"]
[Site "Chess.com"]
[Date "2016.05.03"]
[Round "2"]
[White "FearNoEvil12"]
[Black "ethylalcohol"]
[Result "1-0"]
[WhiteElo "1937"]
[BlackElo "1758"]
[TimeControl "180+2"]
[EndTime "17:18:17 PDT"]
[Termination "FearNoEvil12 won on time"]

1. e4 {[%clk 0:02:49.4]} 1... c5 {[%clk 0:02:59.3]} 2. Nf3 {[%clk 0:02:47.9]}
2... d6 {[%clk 0:02:59.2]} 3. d4 {[%clk 0:02:48.5]} 3... cxd4 {[%clk 0:03:00.2]}
4. Nxd4 {[%clk 0:02:49.6]} 4... Nf6 {[%clk 0:03:01.1]} 5. Nc3 {[%clk 0:02:50.7]}
5... a6 {[%clk 0:03:00.8]} 6. Bg5 {[%clk 0:02:51.7]} 6... e6 {[%clk 0:03:00.3]}
7. f4 {[%clk 0:02:50.3]} 7... Be7 {[%clk 0:02:59]} 8. Qf3 {[%clk 0:02:47]} 8...
Nbd7 {[%clk 0:02:51.9]} 9. O-O-O {[%clk 0:02:35.8]} 9... h6 {[%clk 0:02:37.4]}
10. Bh4 {[%clk 0:02:27.2]} 10... g5 {[%clk 0:01:05.4]} 11. fxg5 {[%clk
0:02:23.3]} 11... Ne5 {[%clk 0:01:06.2]} 12. gxf6 {[%clk 0:02:21.9]} 12... Nxf3
{[%clk 0:00:57.4]} 13. fxe7 {[%clk 0:02:21.5]} 13... Qa5 {[%clk 0:00:52.1]} 14.
Nxf3 {[%clk 0:02:17]} 14... b5 {[%clk 0:00:19.8]} 15. Rxd6 {[%clk 0:02:04.4]}
15... Bd7 {[%clk 0:00:19.9]} 16. Ne5 {[%clk 0:01:52.6]} 16... Ra7 {[%clk
0:00:14.2]} 17. Nc6 {[%clk 0:01:47.7]} 17... Qb6 {[%clk 0:00:04.2]} 18. Bxb5
{[%clk 0:01:36.2]} 18... axb5 {[%clk 0:00:03]} 19. Rhd1 {[%clk 0:01:32.5]} 1-0

[Event "*** Titled Tuesday 3|2 Blitz"]
[Site "Chess.com"]
[Date "2016.05.03"]
[Round "2"]
[White "Kawhi_Leonard2"]
[Black "FLchessplayer"]
[Result "1-0"]
[WhiteElo "2114"]
[BlackElo "2065"]
[TimeControl "180+2"]
[EndTime "17:18:36 PDT"]
[Termination "Kawhi_Leonard2 won by resignation"]

1. e4 {[%clk 0:03:01.9]} 1... c5 {[%clk 0:02:59.8]} 2. Nf3 {[%clk 0:03:02.7]}
2... d6 {[%clk 0:03:01.1]} 3. d4 {[%clk 0:03:03.3]} 3... cxd4 {[%clk 0:03:01.7]}
4. Nxd4 {[%clk 0:03:04.9]} 4... Nf6 {[%clk 0:03:03.1]} 5. Nc3 {[%clk 0:03:06.3]}
5... Nbd7 {[%clk 0:03:04.3]} 6. f4 {[%clk 0:03:04.4]} 6... a6 {[%clk 0:03:02.3]}
7. Bd3 {[%clk 0:03:03.5]} 7... g6 {[%clk 0:03:02.1]} 8. Qe2 {[%clk 0:02:58.9]}
8... Qb6 {[%clk 0:02:52.9]} 9. Nb3 {[%clk 0:02:56]} 9... Qc7 {[%clk 0:02:51.6]}
10. Be3 {[%clk 0:02:52.7]} 10... Bg7 {[%clk 0:02:51.1]} 11. O-O {[%clk
0:02:51.4]} 11... h5 {[%clk 0:02:50.7]} 12. h3 {[%clk 0:02:48.6]} 12... b5
{[%clk 0:02:47.6]} 13. a4 {[%clk 0:02:46.9]} 13... b4 {[%clk 0:02:47.3]} 14. Nd5
{[%clk 0:02:47.6]} 14... Nxd5 {[%clk 0:02:47]} 15. exd5 {[%clk 0:02:48.4]} 15...
Nc5 {[%clk 0:02:37.8]} 16. Bd4 {[%clk 0:02:43.7]} 16... Nxb3 {[%clk 0:02:27.4]}
17. Bxg7 {[%clk 0:02:42.8]} 17... Rg8 {[%clk 0:02:28.6]} 18. cxb3 {[%clk
0:02:22.2]} 18... Rxg7 {[%clk 0:02:28.4]} 19. Rac1 {[%clk 0:02:19]} 19... Qb6+
{[%clk 0:02:26.3]} 20. Kh1 {[%clk 0:02:16.9]} 20... Kf8 {[%clk 0:02:18.6]} 21.
Rc6 {[%clk 0:02:03.6]} 21... Qb8 {[%clk 0:02:12.9]} 22. Rfc1 {[%clk 0:02:01.5]}
22... Bd7 {[%clk 0:02:12.9]} 23. Rc7 {[%clk 0:01:59.5]} 23... Qd8 {[%clk
0:02:08.5]} 24. Bxa6 {[%clk 0:01:59.3]} 24... f6 {[%clk 0:02:01.2]} 25. Bb7
{[%clk 0:01:44.5]} 25... Rb8 {[%clk 0:02:00.5]} 26. Qa6 {[%clk 0:01:38.8]} 26...
e5 {[%clk 0:01:53.6]} 27. dxe6 {[%clk 0:01:35.1]} 27... Bxe6 {[%clk 0:01:54.4]}
28. Rxg7 {[%clk 0:01:29]} 28... Kxg7 {[%clk 0:01:54]} 29. Rd1 {[%clk 0:01:11.8]}
29... Bf5 {[%clk 0:01:52]} 30. Bd5 {[%clk 0:01:04.7]} 30... h4 {[%clk
0:01:46.6]} 31. Qc4 {[%clk 0:01:02.1]} 31... Rc8 {[%clk 0:01:45.4]} 32. Qd4
{[%clk 0:01:00.2]} 32... Qa5 {[%clk 0:01:41]} 33. Bc4 {[%clk 0:00:58.1]} 33...
Re8 {[%clk 0:01:22.7]} 34. Qxd6 {[%clk 0:00:58.3]} 34... Re1+ {[%clk 0:01:23.1]}
35. Rxe1 {[%clk 0:00:55.7]} 1-0

[Event "*** Titled Tuesday 3|2 Blitz"]
[Site "Chess.com"]
[Date "2016.05.03"]
[Round "2"]
[White "exoticprincess"]
[Black "JusticeBot"]
[Result "1-0"]
[WhiteElo "2849"]
[BlackElo "2515"]
[TimeControl "180+2"]
[EndTime "17:18:55 PDT"]
[Termination "exoticprincess won by resignation"]

1. b3 {[%clk 0:03:01.9]} 1... e5 {[%clk 0:03:00]} 2. Bb2 {[%clk 0:03:03.2]} 2...
Nc6 {[%clk 0:03:01.7]} 3. e3 {[%clk 0:03:04.5]} 3... Nf6 {[%clk 0:03:03]} 4. Bb5
{[%clk 0:03:05.2]} 4... Bd6 {[%clk 0:03:04.8]} 5. Na3 {[%clk 0:03:05.9]} 5...
Na5 {[%clk 0:03:05.9]} 6. Be2 {[%clk 0:03:05.6]} 6... O-O {[%clk 0:02:59.4]} 7.
Nb5 {[%clk 0:03:04.6]} 7... b6 {[%clk 0:02:31.2]} 8. Nxd6 {[%clk 0:02:59.9]}
8... cxd6 {[%clk 0:02:33.1]} 9. Nf3 {[%clk 0:03:00.7]} 9... Bb7 {[%clk
0:02:33.7]} 10. O-O {[%clk 0:03:01.4]} 10... Re8 {[%clk 0:02:33.8]} 11. d4
{[%clk 0:03:00.9]} 11... Qc7 {[%clk 0:02:31.7]} 12. c4 {[%clk 0:02:58.9]} 12...
Ne4 {[%clk 0:02:15.6]} 13. Rc1 {[%clk 0:02:55.9]} 13... f5 {[%clk 0:02:06.9]}
14. d5 {[%clk 0:02:52.5]} 14... Bc8 {[%clk 0:02:01.5]} 15. b4 {[%clk 0:02:51.8]}
15... Nb7 {[%clk 0:02:02.6]} 16. Bd3 {[%clk 0:02:48.8]} 16... a5 {[%clk
0:01:51.2]} 17. a3 {[%clk 0:02:49.9]} 17... Nd8 {[%clk 0:01:00.4]} 18. Bxe4
{[%clk 0:02:49.8]} 18... fxe4 {[%clk 0:01:02.3]} 19. Ng5 {[%clk 0:02:51.3]}
19... h6 {[%clk 0:01:02.4]} 20. Nxe4 {[%clk 0:02:50.3]} 20... Nf7 {[%clk
0:01:03.5]} 21. Qd3 {[%clk 0:02:46.3]} 21... axb4 {[%clk 0:00:59.2]} 22. axb4
{[%clk 0:02:46.7]} 22... Ra4 {[%clk 0:01:00.2]} 23. Qb3 {[%clk 0:02:45.3]} 23...
Ra7 {[%clk 0:00:54.2]} 24. h3 {[%clk 0:02:45.6]} 24... Bb7 {[%clk 0:00:54.9]}
25. f4 {[%clk 0:02:42.7]} 25... exf4 {[%clk 0:00:53.7]} 26. Qc3 {[%clk
0:02:42.2]} 26... Ne5 {[%clk 0:00:30.8]} 27. c5 {[%clk 0:02:42]} 27... Bxd5
{[%clk 0:00:07.9]} 28. Nxd6 {[%clk 0:02:40]} 28... Re7 {[%clk 0:00:09.1]} 29.
exf4 {[%clk 0:02:34.5]} 29... Ng6 {[%clk 0:00:08.3]} 30. Qd3 {[%clk 0:02:33.1]}
30... Bf7 {[%clk 0:00:04]} 31. Nxf7 {[%clk 0:02:31.4]} 31... Nxf4 {[%clk
0:00:02]} 32. Nxh6+ {[%clk 0:02:29.2]} 32... gxh6 {[%clk 0:00:03]} 33. Qg3+
{[%clk 0:02:30.1]} 33... Kh7 {[%clk 0:00:02.6]} 34. Qxf4 {[%clk 0:02:30.9]}
34... Qxf4 {[%clk 0:00:03.2]} 35. Rxf4 {[%clk 0:02:32.1]} 35... Ra2 {[%clk
0:00:05.1]} 36. cxb6 {[%clk 0:02:29.5]} 36... Re2 {[%clk 0:00:03.5]} 37. b7
{[%clk 0:02:27.5]} 37... Raxb2 {[%clk 0:00:04.5]} 38. Rg4 {[%clk 0:02:27.2]}
38... Re8 {[%clk 0:00:05.2]} 39. Rc8 {[%clk 0:02:28.3]} 39... Re1+ {[%clk
0:00:05.9]} 40. Kh2 {[%clk 0:02:29.6]} 40... Rbb1 {[%clk 0:00:07.2]} 41. b8=Q
{[%clk 0:02:28.5]} 41... Rh1+ {[%clk 0:00:06.9]} 42. Kg3 {[%clk 0:02:29.6]}
42... Rb3+ {[%clk 0:00:08.8]} 43. Kh4 {[%clk 0:02:30.7]} 1-0

[Event "*** Titled Tuesday 3|2 Blitz"]
[Site "Chess.com"]
[Date "2016.05.03"]
[Round "2"]
[White "pedromartinez91"]
[Black "sandropozo"]
[Result "0-1"]
[WhiteElo "2323"]
[BlackElo "2277"]
[TimeControl "180+2"]
[EndTime "17:19:25 PDT"]
[Termination "sandropozo won by resignation"]

1. e4 {[%clk 0:03:01.9]} 1... e6 {[%clk 0:02:59.3]} 2. d4 {[%clk 0:03:01.4]}
2... d5 {[%clk 0:02:59.9]} 3. Nd2 {[%clk 0:03:02.3]} 3... Be7 {[%clk 0:02:59]}
4. Bd3 {[%clk 0:03:01.3]} 4... c5 {[%clk 0:02:59.7]} 5. c3 {[%clk 0:02:57.2]}
5... Nc6 {[%clk 0:02:58]} 6. Ngf3 {[%clk 0:02:57.1]} 6... cxd4 {[%clk
0:02:57.7]} 7. cxd4 {[%clk 0:02:56.8]} 7... dxe4 {[%clk 0:02:58.6]} 8. Nxe4
{[%clk 0:02:56.5]} 8... Nf6 {[%clk 0:03:00.2]} 9. O-O {[%clk 0:02:55.4]} 9...
O-O {[%clk 0:02:58.4]} 10. Be3 {[%clk 0:02:46.7]} 10... Nb4 {[%clk 0:02:55.7]}
11. Bb1 {[%clk 0:02:41.5]} 11... Nbd5 {[%clk 0:02:56.5]} 12. Ne5 {[%clk
0:02:33]} 12... Bd7 {[%clk 0:02:57.4]} 13. Qd3 {[%clk 0:02:21.2]} 13... Nxe4
{[%clk 0:02:41.8]} 14. Qxe4 {[%clk 0:02:20.9]} 14... f5 {[%clk 0:02:39.1]} 15.
Qd3 {[%clk 0:01:57.6]} 15... Bd6 {[%clk 0:02:36.2]} 16. a3 {[%clk 0:01:47.6]}
16... Bxe5 {[%clk 0:02:26.5]} 17. dxe5 {[%clk 0:01:47.2]} 17... a6 {[%clk
0:02:24.4]} 18. Rc1 {[%clk 0:01:37]} 18... Bb5 {[%clk 0:02:16.5]} 19. Qd2 {[%clk
0:01:04.2]} 19... Qh4 {[%clk 0:02:08.9]} 20. Ba2 {[%clk 0:00:41.2]} 20... Bc6
{[%clk 0:01:52.7]} 21. Qd4 {[%clk 0:00:22]} 21... f4 {[%clk 0:01:48]} 22. Bxd5
{[%clk 0:00:21]} 22... Bxd5 {[%clk 0:01:46.5]} 23. Bd2 {[%clk 0:00:02.7]} 23...
Bxg2 {[%clk 0:01:37.2]} 24. f3 {[%clk 0:00:04]} 24... Bxf3 {[%clk 0:01:36.9]}
25. Qf2 {[%clk 0:00:05.2]} 25... Qg4+ {[%clk 0:01:25.8]} 26. Kf1 {[%clk
0:00:06]} 26... Bc6 {[%clk 0:01:20.8]} 27. Rc3 {[%clk 0:00:04.6]} 27... Rad8
{[%clk 0:01:13]} 28. Re1 {[%clk 0:00:04.9]} 28... Bb5+ {[%clk 0:01:11.6]} 29.
Re2 {[%clk 0:00:02.7]} 29... Rxd2 {[%clk 0:01:10.8]} 0-1

[Event "*** Titled Tuesday 3|2 Blitz"]
[Site "Chess.com"]
[Date "2016.05.03"]
[Round "2"]
[White "Checky2015"]
[Black "Zurability"]
[Result "0-1"]
[WhiteElo "2596"]
[BlackElo "2429"]
[TimeControl "180+2"]
[EndTime "17:19:38 PDT"]
[Termination "Zurability won by resignation"]

1. d4 {[%clk 0:03:01.9]} 1... d6 {[%clk 0:03:01.9]} 2. e4 {[%clk 0:03:02.4]}
2... Nf6 {[%clk 0:03:02.7]} 3. Nc3 {[%clk 0:03:03.6]} 3... e5 {[%clk 0:03:03.5]}
4. Nf3 {[%clk 0:03:04.5]} 4... Nbd7 {[%clk 0:03:01.2]} 5. Bc4 {[%clk 0:03:05.6]}
5... Be7 {[%clk 0:03:02]} 6. a4 {[%clk 0:03:06.7]} 6... O-O {[%clk 0:03:03]} 7.
O-O {[%clk 0:03:07.8]} 7... c6 {[%clk 0:03:04.7]} 8. a5 {[%clk 0:03:07.3]} 8...
exd4 {[%clk 0:03:05.2]} 9. Nxd4 {[%clk 0:03:08.4]} 9... Ne5 {[%clk 0:03:06]} 10.
Be2 {[%clk 0:03:09.6]} 10... Bd7 {[%clk 0:03:03.5]} 11. f4 {[%clk 0:03:07.9]}
11... Ng6 {[%clk 0:03:04.8]} 12. Be3 {[%clk 0:03:05.8]} 12... Re8 {[%clk
0:03:04.8]} 13. f5 {[%clk 0:02:58.5]} 13... Ne5 {[%clk 0:03:05]} 14. Kh1 {[%clk
0:02:53]} 14... h6 {[%clk 0:03:05.5]} 15. Qd2 {[%clk 0:02:54.1]} 15... Nh7
{[%clk 0:03:03.3]} 16. Nf3 {[%clk 0:02:52.1]} 16... Qc7 {[%clk 0:02:30.5]} 17.
Nxe5 {[%clk 0:02:47.5]} 17... dxe5 {[%clk 0:02:31.3]} 18. Bc4 {[%clk 0:02:48.8]}
18... Red8 {[%clk 0:02:28.2]} 19. Qe2 {[%clk 0:02:43.1]} 19... Be8 {[%clk
0:02:27.9]} 20. Qf2 {[%clk 0:02:36.9]} 20... Bb4 {[%clk 0:02:16.7]} 21. a6
{[%clk 0:01:50.4]} 21... b6 {[%clk 0:02:10.4]} 22. Qg3 {[%clk 0:01:42.9]} 22...
Kh8 {[%clk 0:02:08.8]} 23. f6 {[%clk 0:01:44.3]} 23... g5 {[%clk 0:01:52.9]} 24.
Qh3 {[%clk 0:01:33.3]} 24... Bf8 {[%clk 0:01:51.6]} 25. Ne2 {[%clk 0:01:29.5]}
25... b5 {[%clk 0:01:45.6]} 26. Bb3 {[%clk 0:01:30.4]} 26... c5 {[%clk
0:01:47.1]} 27. Bd5 {[%clk 0:01:31.7]} 27... Bc6 {[%clk 0:01:47.9]} 28. Nc3
{[%clk 0:01:31.1]} 28... b4 {[%clk 0:01:37.1]} 29. Bxc6 {[%clk 0:01:32.5]} 29...
Qxc6 {[%clk 0:01:39]} 30. Nd5 {[%clk 0:01:34.2]} 30... Rd6 {[%clk 0:01:40.5]}
31. Qh5 {[%clk 0:01:27.1]} 31... Kg8 {[%clk 0:01:39.6]} 32. Rf5 {[%clk
0:01:14.6]} 32... Nxf6 {[%clk 0:01:32.9]} 33. Nxf6+ {[%clk 0:00:49.4]} 33...
Rxf6 {[%clk 0:01:33.8]} 34. Rxe5 {[%clk 0:00:50.4]} 34... Re8 {[%clk 0:01:32.2]}
35. Rxe8 {[%clk 0:00:42]} 35... Qxe8 {[%clk 0:01:34.1]} 36. Qg4 {[%clk
0:00:42.8]} 36... Re6 {[%clk 0:01:33.2]} 37. Qf5 {[%clk 0:00:34.2]} 37... Rxe4
{[%clk 0:01:28.3]} 38. Bg1 {[%clk 0:00:32.9]} 38... Qe6 {[%clk 0:01:23.8]} 39.
Qf3 {[%clk 0:00:31.2]} 39... c4 {[%clk 0:01:11.5]} 40. Bxa7 {[%clk 0:00:31.5]}
40... Re1+ {[%clk 0:01:12]} 41. Rxe1 {[%clk 0:00:32.1]} 41... Qxe1+ {[%clk
0:01:13.9]} 42. Bg1 {[%clk 0:00:30.9]} 42... Bc5 {[%clk 0:01:15.4]} 0-1